[Event "Early-Titled-Tuesday-Blitz-January-23-2024"]
[Site "Chess.com"]
[Date "2024.01.23"]
[Round "11"]
[White "eagleclaw07"]
[Black "emeli_chess"]
[Result "1-0"]
[WhiteElo "2643"]
[BlackElo "2463"]
[TimeControl "180+1"]
[EndTime "10:05:53 PST"]
[Termination "eagleclaw07 won by resignation"]

1. d4 {[%clk 0:02:57.7]} 1... Nf6 {[%clk 0:02:59.6]} 2. c4 {[%clk 0:02:57.1]}
2... e6 {[%clk 0:02:59.9]} 3. g3 {[%clk 0:02:57.7]} 3... d5 {[%clk 0:02:54.8]}
4. Nf3 {[%clk 0:02:58.1]} 4... dxc4 {[%clk 0:02:54.3]} 5. Bg2 {[%clk 0:02:58.4]}
5... Nc6 {[%clk 0:02:54.1]} 6. O-O {[%clk 0:02:58.6]} 6... Rb8 {[%clk
0:02:54.3]} 7. Nc3 {[%clk 0:02:50.4]} 7... b5 {[%clk 0:02:48.7]} 8. Ne5 {[%clk
0:02:48.8]} 8... Nb4 {[%clk 0:02:41.8]} 9. a3 {[%clk 0:02:46.6]} 9... Nbd5
{[%clk 0:02:17.5]} 10. Nc6 {[%clk 0:02:35.7]} 10... Qd6 {[%clk 0:02:17]} 11.
Nxb8 {[%clk 0:02:35.6]} 11... Qb6 {[%clk 0:02:17]} 12. a4 {[%clk 0:02:19]} 12...
b4 {[%clk 0:02:13.1]} 13. Nb5 {[%clk 0:02:13.8]} 13... Qxb8 {[%clk 0:02:10.8]}
14. e4 {[%clk 0:02:13.2]} 14... Nb6 {[%clk 0:01:53.5]} 15. Bf4 {[%clk
0:02:04.2]} 15... Na8 {[%clk 0:01:51.2]} 16. Rc1 {[%clk 0:01:59.2]} 16... Qb6
{[%clk 0:01:30.9]} 17. Rxc4 {[%clk 0:01:55.1]} 17... c6 {[%clk 0:01:30.2]} 18.
d5 {[%clk 0:01:33]} 18... c5 {[%clk 0:01:20]} 19. d6 {[%clk 0:01:12.9]} 19...
Bd7 {[%clk 0:01:14.5]} 20. e5 {[%clk 0:01:11.8]} 20... Nd5 {[%clk 0:01:07.8]}
21. Bxd5 {[%clk 0:01:08.8]} 21... exd5 {[%clk 0:01:08]} 22. Qxd5 {[%clk
0:01:09.6]} 22... Qc6 {[%clk 0:00:54.5]} 23. Qxc6 {[%clk 0:01:06.7]} 23... Bxc6
{[%clk 0:00:54.1]} 24. Rxc5 {[%clk 0:01:07.6]} 24... Bxb5 {[%clk 0:00:49.8]} 25.
axb5 {[%clk 0:01:04.4]} 25... Nb6 {[%clk 0:00:48.7]} 26. Ra1 {[%clk 0:01:02.6]}
26... g5 {[%clk 0:00:48.3]} 27. Bxg5 {[%clk 0:01:00.9]} 27... Bg7 {[%clk
0:00:48.2]} 28. Rxa7 {[%clk 0:00:59.8]} 28... O-O {[%clk 0:00:48]} 29. d7 {[%clk
0:00:59.5]} 1-0

[Event "Early-Titled-Tuesday-Blitz-January-23-2024"]
[Site "Chess.com"]
[Date "2024.01.23"]
[Round "11"]
[White "yaguigor"]
[Black "eightbyeightchess"]
[Result "1-0"]
[WhiteElo "2642"]
[BlackElo "2413"]
[TimeControl "180+1"]
[EndTime "10:06:02 PST"]
[Termination "yaguigor won by resignation"]

1. Nf3 {[%clk 0:03:00.9]} 1... d5 {[%clk 0:03:00.3]} 2. d4 {[%clk 0:03:00]} 2...
Nf6 {[%clk 0:02:58]} 3. c4 {[%clk 0:03:00.4]} 3... c6 {[%clk 0:02:58.9]} 4. Nc3
{[%clk 0:02:59.7]} 4... dxc4 {[%clk 0:02:59.5]} 5. a4 {[%clk 0:02:58.6]} 5...
Bf5 {[%clk 0:02:59.6]} 6. e3 {[%clk 0:02:56.7]} 6... e6 {[%clk 0:02:59.1]} 7.
Bxc4 {[%clk 0:02:56.7]} 7... Nbd7 {[%clk 0:02:58.9]} 8. O-O {[%clk 0:02:56.6]}
8... Bb4 {[%clk 0:02:57.8]} 9. Qe2 {[%clk 0:02:53.5]} 9... Bg6 {[%clk
0:02:57.8]} 10. Rd1 {[%clk 0:02:42.2]} 10... Qc7 {[%clk 0:02:56]} 11. Bd2 {[%clk
0:02:36.8]} 11... O-O {[%clk 0:02:39.1]} 12. Rac1 {[%clk 0:02:35.4]} 12... a5
{[%clk 0:02:31]} 13. Bd3 {[%clk 0:02:30.9]} 13... Bxd3 {[%clk 0:02:13.9]} 14.
Qxd3 {[%clk 0:02:30.9]} 14... Rfd8 {[%clk 0:02:14.8]} 15. Ne4 {[%clk 0:02:18.3]}
15... Nxe4 {[%clk 0:01:38.4]} 16. Qxe4 {[%clk 0:02:19.2]} 16... h6 {[%clk
0:01:21.7]} 17. Bxb4 {[%clk 0:02:13.1]} 17... axb4 {[%clk 0:01:22.6]} 18. b3
{[%clk 0:02:13.7]} 18... Ra5 {[%clk 0:01:21.8]} 19. h4 {[%clk 0:02:10.1]} 19...
Rd5 {[%clk 0:01:13.1]} 20. g3 {[%clk 0:02:02]} 20... Qd6 {[%clk 0:00:57.4]} 21.
Qc2 {[%clk 0:02:00.2]} 21... Rf5 {[%clk 0:00:31.3]} 22. Kg2 {[%clk 0:01:57.4]}
22... Rf6 {[%clk 0:00:22.7]} 23. e4 {[%clk 0:01:55.7]} 23... Qb8 {[%clk
0:00:18.6]} 24. Qc4 {[%clk 0:01:50.9]} 24... Re8 {[%clk 0:00:15.8]} 25. Qxb4
{[%clk 0:01:48.4]} 25... e5 {[%clk 0:00:14.9]} 26. d5 {[%clk 0:01:34.4]} 26...
cxd5 {[%clk 0:00:10.9]} 27. Rxd5 {[%clk 0:01:33.6]} 27... Rg6 {[%clk 0:00:08.8]}
28. Rxd7 {[%clk 0:01:30.7]} 1-0

[Event "Early-Titled-Tuesday-Blitz-January-23-2024"]
[Site "Chess.com"]
[Date "2024.01.23"]
[Round "11"]
[White "campochess"]
[Black "tarno17"]
[Result "1-0"]
[WhiteElo "2092"]
[BlackElo "2062"]
[TimeControl "180+1"]
[EndTime "10:06:09 PST"]
[Termination "campochess won by resignation"]

1. e4 {[%clk 0:02:58.6]} 1... c5 {[%clk 0:02:59.9]} 2. b4 {[%clk 0:02:56.4]}
2... d5 {[%clk 0:02:59.1]} 3. exd5 {[%clk 0:02:54]} 3... Qxd5 {[%clk 0:02:59.3]}
4. Nc3 {[%clk 0:02:52.2]} 4... Qd8 {[%clk 0:02:39.6]} 5. bxc5 {[%clk 0:02:50.6]}
5... e5 {[%clk 0:02:37.6]} 6. Bb5+ {[%clk 0:02:47.1]} 6... Bd7 {[%clk
0:02:37.4]} 7. Qe2 {[%clk 0:02:47]} 7... Bxb5 {[%clk 0:02:04.6]} 8. Qxb5+ {[%clk
0:02:44.9]} 8... Qd7 {[%clk 0:02:04]} 9. Nf3 {[%clk 0:02:39.1]} 9... Nc6 {[%clk
0:01:51]} 10. O-O {[%clk 0:02:31.9]} 10... a6 {[%clk 0:01:50.4]} 11. Qc4 {[%clk
0:02:26.9]} 11... Be7 {[%clk 0:01:42]} 12. d4 {[%clk 0:02:21.1]} 12... exd4
{[%clk 0:01:38.5]} 13. Nd5 {[%clk 0:02:21.1]} 13... Nf6 {[%clk 0:01:34.9]} 14.
Nb6 {[%clk 0:02:20.1]} 14... Qd8 {[%clk 0:01:33.5]} 15. Nxa8 {[%clk 0:02:19.8]}
15... Qxa8 {[%clk 0:01:34.4]} 16. Nxd4 {[%clk 0:02:18.3]} 16... Nxd4 {[%clk
0:01:33.1]} 17. Qxd4 {[%clk 0:02:17.5]} 17... O-O {[%clk 0:01:33.8]} 18. Be3
{[%clk 0:02:17]} 18... Qc8 {[%clk 0:01:29.3]} 19. Rfd1 {[%clk 0:02:11.4]} 19...
h6 {[%clk 0:01:27.1]} 20. Rab1 {[%clk 0:02:07.8]} 20... Qc6 {[%clk 0:01:23.5]}
21. Rb6 {[%clk 0:02:04.9]} 21... Qc7 {[%clk 0:01:11.7]} 22. Qb4 {[%clk
0:01:59.3]} 22... Rd8 {[%clk 0:01:03]} 23. Rb1 {[%clk 0:01:53.3]} 23... Rb8
{[%clk 0:00:32.5]} 24. Rxb7 {[%clk 0:01:49.2]} 24... Rxb7 {[%clk 0:00:23.9]} 25.
Qxb7 {[%clk 0:01:49.1]} 25... Qe5 {[%clk 0:00:24.3]} 26. Qb8+ {[%clk 0:01:43.5]}
26... Qxb8 {[%clk 0:00:23.7]} 27. Rxb8+ {[%clk 0:01:43.1]} 27... Kh7 {[%clk
0:00:24.3]} 28. c6 {[%clk 0:01:43]} 28... Nd5 {[%clk 0:00:21.6]} 29. Rb7 {[%clk
0:01:38.7]} 29... Bd6 {[%clk 0:00:17.1]} 30. c4 {[%clk 0:01:38.6]} 30... Nc7
{[%clk 0:00:08.3]} 31. Bb6 {[%clk 0:01:34.3]} 31... Na8 {[%clk 0:00:07]} 32. c5
{[%clk 0:01:31.1]} 32... Be5 {[%clk 0:00:02.9]} 33. c7 {[%clk 0:01:31.1]} 33...
Nxc7 {[%clk 0:00:02]} 34. Bxc7 {[%clk 0:01:30.6]} 1-0

[Event "Early-Titled-Tuesday-Blitz-January-23-2024"]
[Site "Chess.com"]
[Date "2024.01.23"]
[Round "11"]
[White "stratacticos"]
[Black "Alenzer"]
[Result "0-1"]
[WhiteElo "2014"]
[BlackElo "2141"]
[TimeControl "180+1"]
[EndTime "10:06:11 PST"]
[Termination "Alenzer won by resignation"]

1. e4 {[%clk 0:02:54.5]} 1... c5 {[%clk 0:02:59.5]} 2. b4 {[%clk 0:02:51.8]}
2... cxb4 {[%clk 0:02:58.6]} 3. a3 {[%clk 0:02:51.6]} 3... bxa3 {[%clk
0:02:53.2]} 4. Nxa3 {[%clk 0:02:51.1]} 4... d5 {[%clk 0:02:50.1]} 5. exd5 {[%clk
0:02:49.8]} 5... Qxd5 {[%clk 0:02:49]} 6. Nf3 {[%clk 0:02:49.7]} 6... Bg4 {[%clk
0:02:43.4]} 7. Bb5+ {[%clk 0:02:43.1]} 7... Nc6 {[%clk 0:02:42]} 8. O-O {[%clk
0:02:39.6]} 8... Bxf3 {[%clk 0:02:36.1]} 9. Qxf3 {[%clk 0:02:35.7]} 9... Qxf3
{[%clk 0:02:35.7]} 10. gxf3 {[%clk 0:02:35.7]} 10... Nf6 {[%clk 0:02:35.6]} 11.
Nc4 {[%clk 0:02:23.1]} 11... e6 {[%clk 0:02:32.8]} 12. Nb6 {[%clk 0:02:20.9]}
12... Rb8 {[%clk 0:02:16.9]} 13. Rxa7 {[%clk 0:02:19.7]} 13... Bc5 {[%clk
0:02:16.5]} 14. Bxc6+ {[%clk 0:02:04.6]} 14... bxc6 {[%clk 0:02:15.2]} 15. Ra8
{[%clk 0:02:04.4]} 15... Rxa8 {[%clk 0:02:09]} 16. Nxa8 {[%clk 0:02:03.8]} 16...
Kd7 {[%clk 0:02:09.2]} 17. d4 {[%clk 0:02:01.1]} 17... Ba7 {[%clk 0:02:03.4]}
18. Bf4 {[%clk 0:02:00.3]} 18... Rxa8 {[%clk 0:02:02.2]} 19. Ra1 {[%clk
0:01:59.8]} 19... Nd5 {[%clk 0:01:54.2]} 20. Bd2 {[%clk 0:01:56.7]} 20... Nc7
{[%clk 0:01:44.5]} 21. Be3 {[%clk 0:01:56.2]} 21... Bb6 {[%clk 0:01:35.3]} 22.
Rb1 {[%clk 0:01:54.2]} 22... Ra6 {[%clk 0:01:26]} 23. c4 {[%clk 0:01:53.2]}
23... Kc8 {[%clk 0:01:10.8]} 24. f4 {[%clk 0:01:51.8]} 24... Ba7 {[%clk
0:01:04]} 25. Kg2 {[%clk 0:01:50.1]} 25... Rb6 {[%clk 0:01:03.9]} 26. Ra1 {[%clk
0:01:48.9]} 26... Kb7 {[%clk 0:01:03.5]} 27. Kf3 {[%clk 0:01:34.9]} 27... f5
{[%clk 0:00:56.4]} 28. h4 {[%clk 0:01:29.9]} 28... Rb3 {[%clk 0:00:56.4]} 29.
Ke2 {[%clk 0:01:16]} 29... Ne8 {[%clk 0:00:46.2]} 30. h5 {[%clk 0:01:13.9]}
30... Nf6 {[%clk 0:00:45.8]} 31. f3 {[%clk 0:01:12.1]} 31... Nxh5 {[%clk
0:00:44.4]} 32. Rh1 {[%clk 0:00:58.6]} 32... Ng3+ {[%clk 0:00:44.3]} 0-1

[Event "Early-Titled-Tuesday-Blitz-January-23-2024"]
[Site "Chess.com"]
[Date "2024.01.23"]
[Round "11"]
[White "BardArtem"]
[Black "nihalsarin"]
[Result "0-1"]
[WhiteElo "2822"]
[BlackElo "3179"]
[TimeControl "180+1"]
[EndTime "10:06:12 PST"]
[Termination "nihalsarin won by resignation"]

1. e4 {[%clk 0:03:00.9]} 1... Na6 {[%clk 0:02:59.9]} 2. d4 {[%clk 0:03:00.4]}
2... c6 {[%clk 0:02:58.6]} 3. Nf3 {[%clk 0:02:55.5]} 3... d5 {[%clk 0:02:57.5]}
4. exd5 {[%clk 0:02:56.4]} 4... cxd5 {[%clk 0:02:56.6]} 5. Ne5 {[%clk
0:02:56.9]} 5... Nc7 {[%clk 0:02:56.2]} 6. Bd3 {[%clk 0:02:55.5]} 6... Nf6
{[%clk 0:02:54.7]} 7. O-O {[%clk 0:02:55]} 7... e6 {[%clk 0:02:53.1]} 8. Nd2
{[%clk 0:02:53.1]} 8... Be7 {[%clk 0:02:53.1]} 9. Qe2 {[%clk 0:02:52.1]} 9...
O-O {[%clk 0:02:53.7]} 10. f4 {[%clk 0:02:52.1]} 10... Bd7 {[%clk 0:02:53.9]}
11. Rf3 {[%clk 0:02:50.4]} 11... a6 {[%clk 0:02:54.4]} 12. Rh3 {[%clk
0:02:50.4]} 12... g6 {[%clk 0:02:51.8]} 13. Ndf3 {[%clk 0:02:46.2]} 13... Bb5
{[%clk 0:02:51.6]} 14. f5 {[%clk 0:02:42.1]} 14... exf5 {[%clk 0:02:49.1]} 15.
Bh6 {[%clk 0:02:41.4]} 15... Bxd3 {[%clk 0:02:44.8]} 16. cxd3 {[%clk 0:02:40.8]}
16... Ne6 {[%clk 0:02:44.6]} 17. Bxf8 {[%clk 0:02:37.7]} 17... Bxf8 {[%clk
0:02:45.4]} 18. Nxf7 {[%clk 0:02:21.4]} 18... Kxf7 {[%clk 0:02:43.4]} 19. Ne5+
{[%clk 0:02:18.9]} 19... Kg7 {[%clk 0:02:41.1]} 20. Nxg6 {[%clk 0:02:19]} 20...
Nxd4 {[%clk 0:02:33.7]} 21. Qe5 {[%clk 0:02:15.7]} 21... hxg6 {[%clk 0:02:16.2]}
22. Qxd4 {[%clk 0:02:13.9]} 22... Qc7 {[%clk 0:02:16.7]} 23. Kh1 {[%clk
0:02:04.4]} 23... Re8 {[%clk 0:02:12.3]} 24. Qh4 {[%clk 0:01:51.1]} 24... Qe5
{[%clk 0:01:59.4]} 25. Rf1 {[%clk 0:01:41.6]} 25... Kf7 {[%clk 0:01:54.9]} 26.
Qa4 {[%clk 0:01:20]} 26... Qxb2 {[%clk 0:01:50.8]} 27. Qa5 {[%clk 0:01:16.2]}
27... Bd6 {[%clk 0:01:42.4]} 28. Qa4 {[%clk 0:01:05.9]} 28... Re2 {[%clk
0:01:32.8]} 29. Rg1 {[%clk 0:00:50.7]} 29... Qb4 {[%clk 0:01:15.1]} 30. Qd1
{[%clk 0:00:45.2]} 30... Qd2 {[%clk 0:01:14.2]} 31. Qb3 {[%clk 0:00:42.7]} 31...
Qb2 {[%clk 0:01:13.1]} 32. Qa4 {[%clk 0:00:42.4]} 32... Qxa2 {[%clk 0:01:13.1]}
33. Qd4 {[%clk 0:00:41.4]} 33... Qb2 {[%clk 0:01:08.5]} 34. Qb6 {[%clk
0:00:38.9]} 34... Qxb6 {[%clk 0:01:08]} 0-1

[Event "Early-Titled-Tuesday-Blitz-January-23-2024"]
[Site "Chess.com"]
[Date "2024.01.23"]
[Round "11"]
[White "C_K_G"]
[Black "Championnn-9"]
[Result "1-0"]
[WhiteElo "2135"]
[BlackElo "2560"]
[TimeControl "180+1"]
[EndTime "10:06:16 PST"]
[Termination "C_K_G won by resignation"]

1. e4 {[%clk 0:02:56.5]} 1... a6 {[%clk 0:02:57.8]} 2. Nf3 {[%clk 0:02:56]} 2...
c6 {[%clk 0:02:56.2]} 3. d4 {[%clk 0:02:55.3]} 3... d5 {[%clk 0:02:56.5]} 4. e5
{[%clk 0:02:55.7]} 4... Bf5 {[%clk 0:02:51.7]} 5. Bd3 {[%clk 0:02:54.5]} 5... g6
{[%clk 0:02:44.7]} 6. Bxf5 {[%clk 0:02:49.9]} 6... gxf5 {[%clk 0:02:45.6]} 7.
O-O {[%clk 0:02:48.2]} 7... e6 {[%clk 0:02:45.6]} 8. Bg5 {[%clk 0:02:45.7]} 8...
Be7 {[%clk 0:02:45.4]} 9. Bxe7 {[%clk 0:02:45.5]} 9... Nxe7 {[%clk 0:02:46]} 10.
c3 {[%clk 0:02:38.7]} 10... Ng6 {[%clk 0:02:45.9]} 11. Re1 {[%clk 0:02:38]}
11... Nd7 {[%clk 0:02:44.3]} 12. Nbd2 {[%clk 0:02:37.2]} 12... h5 {[%clk
0:02:37.8]} 13. a3 {[%clk 0:02:35.7]} 13... h4 {[%clk 0:02:37.4]} 14. h3 {[%clk
0:02:35.5]} 14... Rg8 {[%clk 0:02:28.2]} 15. Kh1 {[%clk 0:02:32.2]} 15... Nf4
{[%clk 0:02:27.8]} 16. Rg1 {[%clk 0:02:28.8]} 16... Qe7 {[%clk 0:02:25.9]} 17.
b4 {[%clk 0:02:27.9]} 17... Rg7 {[%clk 0:02:18.7]} 18. Nf1 {[%clk 0:02:27.8]}
18... f6 {[%clk 0:02:09.1]} 19. exf6 {[%clk 0:02:25.9]} 19... Nxf6 {[%clk
0:02:06.9]} 20. Qd2 {[%clk 0:02:19.6]} 20... Qd6 {[%clk 0:01:50.5]} 21. Ne5
{[%clk 0:02:19.3]} 21... N4h5 {[%clk 0:01:46]} 22. Qh6 {[%clk 0:02:13.2]} 22...
O-O-O {[%clk 0:01:45.8]} 23. a4 {[%clk 0:01:58.3]} 23... Rdg8 {[%clk 0:01:44.6]}
24. b5 {[%clk 0:01:55.2]} 24... Rh7 {[%clk 0:01:30.2]} 25. Qe3 {[%clk
0:01:50.2]} 25... Ne4 {[%clk 0:01:12.8]} 26. bxc6 {[%clk 0:01:42.7]} 26... bxc6
{[%clk 0:01:12.8]} 27. Rb1 {[%clk 0:01:38.4]} 27... c5 {[%clk 0:01:13.1]} 28.
Rb2 {[%clk 0:01:23.9]} 28... f4 {[%clk 0:01:09.8]} 29. Qd3 {[%clk 0:01:16]}
29... c4 {[%clk 0:01:03.4]} 30. Qb1 {[%clk 0:01:11.8]} 30... Nxc3 {[%clk
0:00:54.1]} 31. Qxh7 {[%clk 0:01:06.5]} 31... Nf6 {[%clk 0:00:27.4]} 32. Qb7+
{[%clk 0:01:01.4]} 32... Kd8 {[%clk 0:00:27.7]} 33. Nf7+ {[%clk 0:01:01.6]} 1-0

[Event "Early-Titled-Tuesday-Blitz-January-23-2024"]
[Site "Chess.com"]
[Date "2024.01.23"]
[Round "11"]
[White "Piotrek1979"]
[Black "carloseduar100"]
[Result "1-0"]
[WhiteElo "2410"]
[BlackElo "2298"]
[TimeControl "180+1"]
[EndTime "10:06:21 PST"]
[Termination "Piotrek1979 won by resignation"]

1. d4 {[%clk 0:03:00.9]} 1... d5 {[%clk 0:02:59.3]} 2. c4 {[%clk 0:02:59.7]}
2... e5 {[%clk 0:02:59.2]} 3. dxe5 {[%clk 0:02:58.6]} 3... d4 {[%clk 0:02:59.4]}
4. Nf3 {[%clk 0:02:59]} 4... Nc6 {[%clk 0:02:59.2]} 5. a3 {[%clk 0:02:58]} 5...
Nge7 {[%clk 0:02:59.7]} 6. b4 {[%clk 0:02:55.4]} 6... Ng6 {[%clk 0:03:00.1]} 7.
Bb2 {[%clk 0:02:45.8]} 7... a5 {[%clk 0:02:59.8]} 8. b5 {[%clk 0:02:38.1]} 8...
Ncxe5 {[%clk 0:02:59.3]} 9. Qxd4 {[%clk 0:02:32.1]} 9... Qxd4 {[%clk 0:02:56.6]}
10. Bxd4 {[%clk 0:02:33]} 10... Nxc4 {[%clk 0:02:56.3]} 11. e3 {[%clk
0:02:26.6]} 11... Nd6 {[%clk 0:02:56.4]} 12. Nbd2 {[%clk 0:02:23.9]} 12... f6
{[%clk 0:02:51.8]} 13. Rc1 {[%clk 0:02:19.5]} 13... Kd8 {[%clk 0:02:38.8]} 14.
Be2 {[%clk 0:02:01.9]} 14... Be6 {[%clk 0:02:29]} 15. O-O {[%clk 0:01:59.5]}
15... Kd7 {[%clk 0:02:27.4]} 16. Rfd1 {[%clk 0:01:58.3]} 16... Be7 {[%clk
0:02:23.4]} 17. Bb2 {[%clk 0:01:47.3]} 17... Bd5 {[%clk 0:01:53]} 18. e4 {[%clk
0:01:43.8]} 18... Be6 {[%clk 0:01:50.8]} 19. Nd4 {[%clk 0:01:43.4]} 19... Nf4
{[%clk 0:01:22.9]} 20. Bf1 {[%clk 0:01:43]} 20... Rhc8 {[%clk 0:01:20.7]} 21.
Nxe6 {[%clk 0:01:40.4]} 21... Kxe6 {[%clk 0:01:21]} 22. g3 {[%clk 0:01:39.5]}
22... Ng6 {[%clk 0:01:07.1]} 23. Bh3+ {[%clk 0:01:38.9]} 23... Kf7 {[%clk
0:01:07.2]} 24. Bxc8 {[%clk 0:01:37.5]} 24... Rxc8 {[%clk 0:01:08.1]} 25. a4
{[%clk 0:01:33.7]} 25... Ke6 {[%clk 0:01:02.7]} 26. f4 {[%clk 0:01:33.5]} 26...
Kf7 {[%clk 0:00:52.1]} 27. Re1 {[%clk 0:01:25.6]} 27... Bf8 {[%clk 0:00:34.9]}
28. Kg2 {[%clk 0:01:23.1]} 28... h5 {[%clk 0:00:34.3]} 29. Nc4 {[%clk
0:01:22.8]} 29... Nxc4 {[%clk 0:00:18.4]} 30. Rxc4 {[%clk 0:01:23.7]} 30... Bd6
{[%clk 0:00:18.4]} 31. e5 {[%clk 0:01:22.5]} 31... fxe5 {[%clk 0:00:17.7]} 32.
fxe5 {[%clk 0:01:23.4]} 32... Be7 {[%clk 0:00:18.2]} 33. e6+ {[%clk 0:01:23.5]}
33... Kf8 {[%clk 0:00:16.7]} 34. Rf1+ {[%clk 0:01:19.7]} 34... Kg8 {[%clk
0:00:16.4]} 35. Rf7 {[%clk 0:01:20.4]} 35... Bd6 {[%clk 0:00:12.9]} 36. Rxg7+
{[%clk 0:01:20.1]} 1-0

[Event "Early-Titled-Tuesday-Blitz-January-23-2024"]
[Site "Chess.com"]
[Date "2024.01.23"]
[Round "11"]
[White "pfalcon1949"]
[Black "BM223344"]
[Result "0-1"]
[WhiteElo "2045"]
[BlackElo "2530"]
[TimeControl "180+1"]
[EndTime "10:06:23 PST"]
[Termination "BM223344 won by resignation"]

1. e4 {[%clk 0:03:00.9]} 1... e6 {[%clk 0:03:00.2]} 2. d4 {[%clk 0:03:00.3]}
2... d5 {[%clk 0:03:01.1]} 3. Nc3 {[%clk 0:02:59.6]} 3... Nf6 {[%clk 0:03:00.6]}
4. e5 {[%clk 0:02:59.5]} 4... Nfd7 {[%clk 0:03:01.2]} 5. f4 {[%clk 0:02:59.9]}
5... c5 {[%clk 0:03:01.6]} 6. Nf3 {[%clk 0:02:59.7]} 6... Nc6 {[%clk 0:03:02.2]}
7. Be3 {[%clk 0:02:58.4]} 7... a6 {[%clk 0:03:02.6]} 8. Qd2 {[%clk 0:02:58.3]}
8... b5 {[%clk 0:03:02.2]} 9. dxc5 {[%clk 0:02:57.8]} 9... Bxc5 {[%clk
0:03:01.3]} 10. O-O-O {[%clk 0:02:56.9]} 10... Qb6 {[%clk 0:02:59.7]} 11. Nd4
{[%clk 0:02:53.5]} 11... O-O {[%clk 0:02:56.6]} 12. h4 {[%clk 0:02:51.8]} 12...
Nxd4 {[%clk 0:02:49.6]} 13. Bxd4 {[%clk 0:02:51]} 13... Bxd4 {[%clk 0:02:44.5]}
14. Qxd4 {[%clk 0:02:50.5]} 14... b4 {[%clk 0:02:45.1]} 15. Qxb6 {[%clk
0:02:39.8]} 15... Nxb6 {[%clk 0:02:46]} 16. Ne2 {[%clk 0:02:38.4]} 16... a5
{[%clk 0:02:46.1]} 17. Nd4 {[%clk 0:02:38.3]} 17... Ba6 {[%clk 0:02:46.2]} 18.
Bxa6 {[%clk 0:02:35.3]} 18... Rxa6 {[%clk 0:02:47.1]} 19. h5 {[%clk 0:02:35.6]}
19... a4 {[%clk 0:02:43.3]} 20. g4 {[%clk 0:02:33.4]} 20... Nc4 {[%clk
0:02:37.5]} 21. Rh3 {[%clk 0:02:28.1]} 21... h6 {[%clk 0:02:22.3]} 22. Rg1
{[%clk 0:02:24]} 22... Kh7 {[%clk 0:02:21.5]} 23. g5 {[%clk 0:02:23.2]} 23...
hxg5 {[%clk 0:02:17]} 24. Rxg5 {[%clk 0:02:17.8]} 24... f6 {[%clk 0:02:16.8]}
25. exf6 {[%clk 0:02:12.5]} 25... Rxf6 {[%clk 0:02:16.8]} 26. Rg4 {[%clk
0:02:12.5]} 26... e5 {[%clk 0:02:13.5]} 27. Ne2 {[%clk 0:01:46.1]} 27... exf4
{[%clk 0:01:58.5]} 28. Nxf4 {[%clk 0:01:43.3]} 28... Rae6 {[%clk 0:01:52.8]} 29.
Rh1 {[%clk 0:01:08.6]} 29... Re4 {[%clk 0:01:51.1]} 30. Nxd5 {[%clk 0:00:43.3]}
30... Rxg4 {[%clk 0:01:49.8]} 31. Nxf6+ {[%clk 0:00:43.4]} 31... gxf6 {[%clk
0:01:50.7]} 32. b3 {[%clk 0:00:40.6]} 32... axb3 {[%clk 0:01:49.3]} 33. axb3
{[%clk 0:00:39.6]} 33... Nd6 {[%clk 0:01:45.3]} 34. Kb2 {[%clk 0:00:38.5]} 34...
Ne4 {[%clk 0:01:44.5]} 35. Rh2 {[%clk 0:00:31.8]} 35... Kh6 {[%clk 0:01:43]} 36.
c4 {[%clk 0:00:28]} 36... bxc3+ {[%clk 0:01:42.3]} 37. Kc2 {[%clk 0:00:28]}
37... f5 {[%clk 0:01:42.2]} 38. b4 {[%clk 0:00:28.4]} 38... Rg8 {[%clk
0:01:35.5]} 39. Kd3 {[%clk 0:00:21.5]} 39... Rc8 {[%clk 0:01:34.6]} 40. Kc2
{[%clk 0:00:20]} 40... Rd8 {[%clk 0:01:32.1]} 41. Kb3 {[%clk 0:00:16.6]} 41...
Rd2 {[%clk 0:01:31.3]} 42. Rh3 {[%clk 0:00:15.7]} 42... Rb2+ {[%clk 0:01:30.6]}
43. Kc4 {[%clk 0:00:13.7]} 43... c2 {[%clk 0:01:29.7]} 0-1

[Event "Early-Titled-Tuesday-Blitz-January-23-2024"]
[Site "Chess.com"]
[Date "2024.01.23"]
[Round "11"]
[White "SirStrateg"]
[Black "snowlord"]
[Result "0-1"]
[WhiteElo "2664"]
[BlackElo "2865"]
[TimeControl "180+1"]
[EndTime "10:06:25 PST"]
[Termination "snowlord won by resignation"]

1. d4 {[%clk 0:03:00.9]} 1... d5 {[%clk 0:02:58.9]} 2. Bf4 {[%clk 0:03:01.1]}
2... Bf5 {[%clk 0:02:57.8]} 3. e3 {[%clk 0:03:00.6]} 3... e6 {[%clk 0:02:58.3]}
4. Nf3 {[%clk 0:03:00.4]} 4... Nf6 {[%clk 0:02:57.9]} 5. Nbd2 {[%clk 0:02:59]}
5... Bd6 {[%clk 0:02:57.2]} 6. Bg3 {[%clk 0:02:58.8]} 6... O-O {[%clk
0:02:54.4]} 7. a3 {[%clk 0:02:58.4]} 7... c5 {[%clk 0:02:54.4]} 8. c3 {[%clk
0:02:58.7]} 8... c4 {[%clk 0:02:49.2]} 9. Ne5 {[%clk 0:02:56.1]} 9... Nc6 {[%clk
0:02:37.2]} 10. Be2 {[%clk 0:02:47.5]} 10... Bxe5 {[%clk 0:02:28.4]} 11. dxe5
{[%clk 0:02:47.4]} 11... Nd7 {[%clk 0:02:27]} 12. e4 {[%clk 0:02:37.5]} 12...
Bg6 {[%clk 0:02:25.6]} 13. exd5 {[%clk 0:02:34.4]} 13... exd5 {[%clk 0:02:26.5]}
14. f4 {[%clk 0:02:24.7]} 14... Qb6 {[%clk 0:02:12.3]} 15. b4 {[%clk 0:02:18]}
15... Qe3 {[%clk 0:01:51.6]} 16. Qc1 {[%clk 0:02:05.3]} 16... Bd3 {[%clk
0:01:49.6]} 17. Qd1 {[%clk 0:01:56.9]} 17... Bxe2 {[%clk 0:01:40.1]} 18. Qxe2
{[%clk 0:01:57.1]} 18... Qxc3 {[%clk 0:01:40.5]} 19. O-O {[%clk 0:01:57.5]}
19... a5 {[%clk 0:01:34]} 20. Nf3 {[%clk 0:01:43.1]} 20... axb4 {[%clk
0:01:31.2]} 21. Rfc1 {[%clk 0:01:43.4]} 21... Nd4 {[%clk 0:01:21.6]} 22. Qf2
{[%clk 0:01:28.3]} 22... Nxf3+ {[%clk 0:01:15.1]} 23. gxf3 {[%clk 0:01:29.2]}
23... Rxa3 {[%clk 0:01:09.7]} 24. Rab1 {[%clk 0:01:22.8]} 24... Qxf3 {[%clk
0:01:04]} 25. Qxf3 {[%clk 0:01:16.7]} 25... Rxf3 {[%clk 0:01:04.9]} 26. Rxb4
{[%clk 0:01:17]} 26... b6 {[%clk 0:00:56.5]} 27. Rd1 {[%clk 0:01:14.3]} 27...
Rb3 {[%clk 0:00:47.3]} 28. Rxb3 {[%clk 0:01:12.1]} 28... cxb3 {[%clk 0:00:47.9]}
29. Rxd5 {[%clk 0:01:11.7]} 29... Nc5 {[%clk 0:00:48.4]} 30. Rd4 {[%clk
0:01:06.7]} 30... g6 {[%clk 0:00:48.8]} 31. Rb4 {[%clk 0:01:05.5]} 31... Rd8
{[%clk 0:00:48.1]} 32. Rxb6 {[%clk 0:01:00]} 32... Rd1+ {[%clk 0:00:48.1]} 33.
Kg2 {[%clk 0:01:00]} 33... Rd2+ {[%clk 0:00:47.9]} 34. Kf3 {[%clk 0:00:58.3]}
34... b2 {[%clk 0:00:47.8]} 35. Bh4 {[%clk 0:00:56.9]} 35... Rd3+ {[%clk
0:00:46.6]} 36. Ke2 {[%clk 0:00:55.3]} 36... Rb3 {[%clk 0:00:47.3]} 37. Rd6
{[%clk 0:00:49.1]} 37... b1=Q {[%clk 0:00:45.7]} 38. Rd8+ {[%clk 0:00:47]} 38...
Kg7 {[%clk 0:00:46.3]} 39. Bf6+ {[%clk 0:00:47.5]} 39... Kh6 {[%clk 0:00:46.9]}
40. Bg5+ {[%clk 0:00:48.3]} 40... Kh5 {[%clk 0:00:47.5]} 0-1